fUSD/lending_fUSD_20240113
["ID","MTS","AMOUNT","RATE_DAILY","PERIOD"]
[311457407,1705146699690,950.46849587,0.00022422,2]
[311457408,1705146699715,950.46849587,0.00022422,2]
[311457409,1705146699740,691.85533659,0.00022422,2]
[311457410,1705146700157,258.61315928,0.00022422,2]
[311457411,1705146700182,83.02457598,0.00022422,2]
[311457412,1705146706301,867.44391989,0.00022422,2]
[311457413,1705146706325,950.46849587,0.00022422,2]
[311457414,1705146706349,950.46849587,0.00022422,2]
[311457415,1705146706373,950.46849587,0.00022422,2]
[311457416,1705146706398,950.46849587,0.00022422,2]
[311457417,1705146706422,950.46849587,0.00022422,2]
[311457418,1705146706446,950.46849587,0.00022422,2]
[311457419,1705146706469,950.46849587,0.00022422,2]
[311457420,1705146706493,950.46849587,0.00022422,2]
[311457421,1705146706517,950.46849587,0.00022422,2]
[311457422,1705146706540,950.46849587,0.00022422,2]
[311457423,1705146706563,7463.16565661,0.00022422,2]
[311457424,1705146711521,318.9060956,0.00022422,2]
[311457425,1705146718259,163.19,0.00022269,2]
[311457426,1705146727571,500.0,0.00022999,10]
[311457427,1705146730468,3005.20674366,0.00022422,2]
[311457428,1705146730508,36779.63582741,0.00022422,2]
[311457429,1705146745538,153.63,0.00022214,2]
[311457430,1705146798416,519.73,0.00021956,2]
[311457431,1705146799542,1000.0,0.00021956,2]
[311457432,1705146823874,500.0,0.00022996,7]
[311457438,1705146891383,10000.0,0.00021932,2]
[311457439,1705146950962,500.0,0.00022998,15]
[311457440,1705146951760,336.82552742,0.00023272,15]
[311457441,1705147115535,177.27,0.00021938,2]
[311457442,1705147125883,170.11,0.00021938,2]
[311457443,1705147127937,1000.0,0.00022997,7]
[311457444,1705147162986,199.34,0.00021929,2]
[311457447,1705147209131,154.44,0.00020012,2]
[311457448,1705147237834,153.63,0.00022089,2]
[311457449,1705147251742,692.21417259,0.00022,3]
[311457450,1705147251766,557.78582741,0.00022,3]
[311457451,1705147261058,1250.0,0.00022,3]
[311457452,1705147269504,1250.0,0.00022,3]
[311457453,1705147294335,200.0,0.00021934,2]
[311457454,1705147347954,500.0,0.00022995,7]
[311457455,1705147409392,-3223.88643155,0.00037096,30]
[311457456,1705147409417,-500.0,0.00037096,120]
[311457457,1705147409440,-500000.0,0.00037096,30]
[311457458,1705147409464,-1677.68405705,0.00037096,120]
[311457459,1705147409487,-1452.94025032,0.00037096,60]
[311457460,1705147409510,-191.9741086,0.00037096,30]
[311457461,1705147409532,-155.0,0.00037096,120]
[311457462,1705147409557,-1047.3839083,0.00037096,120]
[311457463,1705147409581,-2196.94052319,0.00037096,119]
[311457464,1705147409605,-5279.99999701,0.00037096,60]
[311457465,1705147409627,-1313.4412559,0.00037096,120]
[311457466,1705147409651,-471.0248846,0.00037096,30]
[311457467,1705147409675,-159.33332837,0.00037096,30]
[311457468,1705147409698,-160.25208428,0.00037096,30]
[311457469,1705147409720,-160.87442723,0.00037096,60]
[311457470,1705147409742,-335.70750724,0.00037096,30]
[311457471,1705147409764,-277.75763021,0.00037096,30]
[311457472,1705147409788,-1967.760791,0.00037096,30]
[311457473,1705147409811,-1904.383291,0.00037096,30]
[311457474,1705147409835,-305.224997,0.00037096,30]
[311457475,1705147413576,500.0,0.00022995,7]
[311457476,1705147414699,-506.01327902,0.00027397,30]
[311457477,1705147414725,-513.32769862,0.00027397,30]
[311457478,1705147414894,-155.65453419,0.0003,30]
[311457479,1705147414928,-151.0,0.00032718,120]
[311457480,1705147414956,-151.0,0.00033386,30]
[311457481,1705147414986,-2255.0,0.00035,30]
[311457482,1705147415009,-844.36006733,0.00035,30]
[311457483,1705147415034,-5038.0,0.0003523,30]
[311457484,1705147415058,-5038.0,0.0003523,60]
[311457485,1705147415090,-2519.0,0.0003623,30]
[311457486,1705147415117,-2519.0,0.0003623,60]
[311457487,1705147415142,-152.74634693,0.0003623,30]
[311457488,1705147415169,-353.75494167,0.00037,38]
[311457489,1705147415197,-551.99868821,0.000372,30]
[311457490,1705147415225,-162.0,0.0003797,120]
[311457491,1705147415247,-162.0,0.0003797,120]
[311457492,1705147415269,-453.0,0.0003797,120]
[311457493,1705147415291,-453.0,0.0003797,120]
[311457494,1705147415314,-164.0,0.0003797,120]
[311457495,1705147415336,-396.0,0.0003797,120]
[311457496,1705147415359,-164.0,0.0003797,120]
[311457497,1705147415691,-396.0,0.0003797,120]
[311457498,1705147415715,-162.0,0.0003798,120]
[311457499,1705147415737,-162.0,0.0003798,120]
[311457500,1705147415760,-162.0,0.0003798,120]
[311457501,1705147415785,-164.21,0.0003798,120]
[311457502,1705147415807,-256.97,0.0003798,120]
[311457503,1705147415837,-453.0,0.0003798,120]
[311457504,1705147415863,-453.0,0.0003798,120]
[311457505,1705147415887,-453.0,0.0003798,120]
[311457506,1705147415915,-455.95,0.0003798,120]
[311457507,1705147415938,-164.0,0.0003798,120]
[311457508,1705147415961,-396.0,0.0003798,120]
[311457509,1705147415990,-164.0,0.0003798,120]
[311457510,1705147416013,-396.0,0.0003798,120]
[311457511,1705147416036,-164.0,0.0003798,120]
[311457512,1705147416059,-396.0,0.0003798,120]
[311457513,1705147416082,-167.22,0.0003798,120]
[311457514,1705147416105,-400.7,0.0003798,120]
[311457515,1705147416129,-162.0,0.0003799,120]
[311457516,1705147416151,-162.0,0.0003799,120]
[311457517,1705147416173,-162.0,0.0003799,120]
[311457518,1705147416196,-162.0,0.0003799,120]
[311457519,1705147416218,-150.5,0.0003799,120]
[311457520,1705147416240,-244.5,0.0003799,120]
[311457521,1705147416262,-453.0,0.0003799,120]
[311457522,1705147416285,-453.0,0.0003799,120]
[311457523,1705147416307,-453.0,0.0003799,120]
[311457524,1705147416330,-453.0,0.0003799,120]
[311457525,1705147416351,-164.0,0.0003799,120]
[311457526,1705147416373,-396.0,0.0003799,120]
[311457527,1705147416395,-164.0,0.0003799,120]
[311457528,1705147416422,-396.0,0.0003799,120]
[311457529,1705147416444,-164.0,0.0003799,120]
[311457530,1705147416467,-396.0,0.0003799,120]
[311457531,1705147416490,-164.0,0.0003799,120]
[311457532,1705147416512,-396.0,0.0003799,120]
[311457533,1705147416536,-300.0,0.00038,39]
[311457534,1705147416562,-500.0,0.00038356,30]
[311457535,1705147416589,-500.0,0.00038356,30]
[311457536,1705147416612,-500.0,0.00038356,30]
[311457537,1705147416641,-408.84140072,0.00038356,30]
[311457538,1705147416666,-1002.03934941,0.00038356,120]
[311457539,1705147416695,-169.53355484,0.00039,40]
[311457540,1705147416717,-300.0,0.00039,40]
[311457541,1705147416739,-4000.0,0.00039,30]
[311457542,1705147416762,-1514.65,0.00039,30]
[311457543,1705147416785,-1516.35271565,0.000394,30]
[311457544,1705147416813,-422.32840879,0.000399,30]
[311457545,1705147416838,-3610.90789518,0.000399,30]
[311457546,1705147416862,-5014.23296262,0.000399,30]
[311457547,1705147416885,-226.11192383,0.000399,30]
[311457548,1705147416908,-1933.25694878,0.000399,30]
[311457549,1705147416931,-5153.88972443,0.000399,30]
[311457550,1705147416954,-534.03901174,0.000399,30]
[311457551,1705147416977,-16412.80209552,0.000399,30]
[311457552,1705147417000,-650.91846829,0.000399,30]
[311457553,1705147417024,-5565.35290385,0.000399,30]
[311457554,1705147417047,-7477.19493115,0.000399,30]
[311457555,1705147417070,-473.36052955,0.000399,30]
[311457556,1705147417097,-4047.23252761,0.000399,30]
[311457557,1705147417122,-3803.35038808,0.000399,30]
[311457558,1705147417146,-1319.62926849,0.000399,30]
[311457559,1705147417169,-22500.0,0.000399,30]
[311457560,1705147417195,-2876980.0694355,0.0004,30]
[311457561,1705147553255,-155.0,0.00022171,2]
[311457562,1705147553276,-1000.0,0.00022172,2]
[311457563,1705147553296,-214.0,0.00022174,2]
[311457564,1705147553315,-30298.29999997,0.00022216,2]
[311457565,1705147598679,500.0,0.00022997,10]
[311457566,1705147610101,-1416.07043969,0.00022216,2]
[311457567,1705147624655,186.05,0.00021898,2]
[311457568,1705147638097,-5446.83660923,0.00022216,2]
[311457569,1705147647087,-161.89,0.00022117,2]
[311457570,1705147647107,-93248.08580394,0.00022216,2]
[311457571,1705147649095,-25762.33325503,0.00022216,2]
[311457572,1705147710541,154.44,0.00019976,2]
[311457575,1705147730533,840.0,0.00021891,2]
[311457576,1705147737294,1000.0,0.00022996,7]
[311457591,1705147831966,-153.63,0.00022062,2]
[311457592,1705147831976,-4117.37,0.00022216,2]
[311457593,1705147832077,-1763.39381632,0.00022216,2]
[311457594,1705147832088,-1139.07017581,0.00022216,2]
[311457595,1705147832134,-413.35992448,0.00022216,2]
[311457596,1705147832192,-449.57833095,0.00022216,2]
[311457599,1705147838222,-48032.34558517,0.00022216,2]
[311457600,1705147838260,-7372.25454139,0.00022216,2]
[311457601,1705147838271,-3960.31160577,0.00022216,2]
[311457602,1705147838286,-951.26132272,0.00022216,2]
[311457603,1705147838297,-455.23866117,0.00022216,2]
[311457604,1705147838309,-343.81017987,0.00022216,2]
[311457605,1705147838335,-1928.76974849,0.00022216,2]
[311457606,1705147838344,-677.60456806,0.00022303,2]
[311457607,1705147838353,-150.0,0.00022534,2]
[311457608,1705147838362,-10515.56696796,0.00022535,2]
[311457609,1705147838371,-5438.36025782,0.00022536,2]
[311457610,1705147838380,-974.92837842,0.00022537,2]
[311457611,1705147838390,-383.86171178,0.00022538,2]
[311457612,1705147838399,-437.66,0.00022539,2]
[311457613,1705147838408,-437.66,0.00022656,2]
[311457614,1705147838418,-222.50250077,0.00022765,4]
[311457615,1705147838426,-437.66,0.00022773,2]
[311457616,1705147838435,-200.0,0.00022815,2]
[311457617,1705147838444,-500.0,0.00022816,2]
[311457618,1705147838453,-200.0,0.00022816,2]
[311457619,1705147838463,-200.0,0.00022816,2]
[311457620,1705147838472,-800.0,0.00022816,2]
[311457621,1705147838481,-186.05,0.00022877,2]
[311457622,1705147838491,-437.66,0.0002289,2]
[311457624,1705147838500,-387.98838985,0.00022895,2]
[311457625,1705147838509,-55555.0,0.00022897,2]
[311457627,1705147838519,-250.0,0.00022897,2]
[311457629,1705147838528,-222.2265589,0.00022898,2]
[311457631,1705147838537,-155.40435702,0.00022898,2]
[311457633,1705147838547,-100000.0,0.00022898,2]
[311457635,1705147838555,-155.40435693,0.00022898,2]
[311457636,1705147838566,-155.40435693,0.00022898,2]
[311457638,1705147838575,-155.40435693,0.00022899,2]
[311457640,1705147838584,-155.40435693,0.00022899,2]
[311457642,1705147838593,-155.40435693,0.00022899,2]
[311457643,1705147838603,-184.78419498,0.00022899,2]
[311457644,1705147838612,-155.40435693,0.00022899,2]
[311457645,1705147838621,-155.40435693,0.00022899,2]
[311457646,1705147838630,-155.40435693,0.00022899,2]
[311457647,1705147838639,-155.40435693,0.000229,2]
[311457648,1705147838649,-5000.0,0.000229,2]
[311457649,1705147838658,-155.40435693,0.000229,2]
[311457650,1705147838667,-689452.29335804,0.000229,2]
[311457651,1705147838676,-280.17024851,0.000229,2]
[311457652,1705147838686,-155.40435693,0.000229,2]
[311457653,1705147838694,-256.46,0.000229,2]
[311457654,1705147838704,-2511.98011607,0.000229,2]
[311457655,1705147838714,-187.95872347,0.000229,2]
[311457656,1705147838723,-172.49654488,0.00022985,2]
[311457657,1705147838732,-155.0,0.00022993,2]
[311457658,1705147838742,-584.89,0.00022993,2]
[311457659,1705147838750,-1206.52,0.00022993,2]
[311457660,1705147838760,-500.0,0.00022993,2]
[311457661,1705147838769,-1436.42,0.00022993,2]
[311457662,1705147838778,-500.0,0.00022993,2]
[311457663,1705147838787,-14283.47,0.00022993,2]
[311457664,1705147838795,-902.11,0.00022993,2]
[311457665,1705147838804,-805.39,0.00022993,2]
[311457666,1705147838814,-3005.83,0.00022993,2]
[311457667,1705147838823,-622.74,0.00022993,2]
[311457668,1705147838832,-500.0,0.00022993,2]
[311457669,1705147838841,-1588.79,0.00022993,2]
[311457670,1705147838849,-500.0,0.00022993,2]
[311457671,1705147838858,-500.0,0.00022993,2]
[311457672,1705147838867,-620.33,0.00022993,2]
[311457673,1705147838876,-500.0,0.00022993,2]
[311457674,1705147838885,-846.11,0.00022993,2]
[311457675,1705147838894,-8618.07,0.00022993,2]
[311457676,1705147838903,-633.41,0.00022993,2]
[311457677,1705147838911,-500.0,0.00022993,2]
[311457678,1705147838920,-1164.13,0.00022993,2]
[311457679,1705147838930,-1183.4,0.00022993,2]
[311457680,1705147838939,-500.0,0.00022993,2]
[311457681,1705147838949,-1612.6,0.00022993,2]
[311457682,1705147838958,-568.77909786,0.00022993,2]
[311457683,1705147838968,-1257.85,0.00022993,2]
[311457684,1705147838977,-500.0,0.00022993,2]
[311457685,1705147838986,-500.0,0.00022993,2]
[311457686,1705147838995,-824.22,0.00022993,2]
[311457687,1705147839004,-500.0,0.00022993,2]
[311457688,1705147839013,-718.04,0.00022993,2]
[311457689,1705147839023,-616.77,0.00022993,2]
[311457690,1705147839032,-590.07,0.00022993,2]
[311457691,1705147839041,-500.0,0.00022993,2]
[311457692,1705147839050,-1945.77,0.00022994,2]
[311457693,1705147839059,-818.94,0.00022994,2]
[311457694,1705147839070,-866.42,0.00022994,2]
[311457695,1705147839079,-728.37,0.00022994,2]
[311457696,1705147839088,-1388.03,0.00022994,2]
[311457697,1705147839098,-523.98,0.00022994,2]
[311457698,1705147839107,-2239.81,0.00022994,5]
[311457699,1705147839117,-1760.82,0.00022994,2]
[311457700,1705147839126,-17007.8,0.00022994,2]
[311457701,1705147839135,-500.0,0.00022994,2]
[311457702,1705147839144,-1764.72,0.00022994,2]
[311457703,1705147839153,-4968.27,0.00022994,2]
[311457704,1705147839163,-824.35,0.00022994,2]
[311457705,1705147839172,-6115.51,0.00022994,2]
[311457706,1705147839181,-691.98,0.00022994,2]
[311457707,1705147839190,-500.0,0.00022994,2]
[311457708,1705147839199,-655.4,0.00022994,2]
[311457709,1705147839209,-1773.05,0.00022994,2]
[311457710,1705147839218,-500.0,0.00022994,2]
[311457711,1705147839229,-648.91,0.00022994,2]
[311457712,1705147839238,-1209.7,0.00022994,2]
[311457713,1705147839248,-500.0,0.00022994,2]
[311457714,1705147839258,-500.0,0.00022994,2]
[311457715,1705147839267,-4087.14,0.00022994,2]
[311457716,1705147839276,-923.9,0.00022994,2]
[311457717,1705147839286,-994.95,0.00022994,2]
[311457718,1705147839295,-670.52,0.00022994,2]
[311457719,1705147839304,-641.07,0.00022994,2]
[311457720,1705147839313,-1196.11,0.00022994,2]
[311457721,1705147839322,-740.69,0.00022994,2]
[311457722,1705147839331,-8433.96,0.00022994,2]
[311457723,1705147839341,-500.0,0.00022994,2]
[311457724,1705147839350,-550.15,0.00022994,2]
[311457725,1705147839362,-2264.91,0.00022994,2]
[311457726,1705147839373,-904.38,0.00022994,2]
[311457727,1705147839382,-672.5,0.00022994,2]
[311457728,1705147839391,-911.92,0.00022994,2]
[311457729,1705147839401,-2668.28,0.00022994,2]
[311457730,1705147839410,-5254.84,0.00022994,2]
[311457731,1705147839419,-1235.08,0.00022994,2]
[311457732,1705147839428,-1095.4,0.00022994,2]
[311457733,1705147839438,-545.15897933,0.00022995,2]
[311457734,1705147839448,-473.8673768,0.00022995,2]
[311457735,1705147839458,-215.78354203,0.00022995,2]
[311457736,1705147839467,-2018.10308734,0.00022995,2]
[311457737,1705147839476,-4630.74851402,0.00022995,2]
[311457738,1705147839486,-171.98366677,0.00022995,2]
[311457739,1705147839495,-155.45470079,0.00022995,2]
[311457740,1705147839504,-155.08338386,0.00022995,2]
[311457741,1705147839514,-532.26466838,0.00022995,2]
[311457742,1705147839523,-155.0,0.00022995,2]
[311457743,1705147839532,-156.32004511,0.00022995,2]
[311457744,1705147839542,-950.84386879,0.00022995,2]
[311457745,1705147839551,-3546.78893271,0.00022995,2]
[311457746,1705147839560,-1612.96574292,0.00022995,2]
[311457747,1705147839569,-500.0,0.00022995,2]
[311457748,1705147839578,-500.0,0.00022995,2]
[311457749,1705147839588,-500.0,0.00022995,2]
[311457750,1705147839597,-500.0,0.00022995,2]
[311457751,1705147839606,-500.0,0.00022995,2]
[311457752,1705147839615,-500.0,0.00022995,2]
[311457753,1705147839624,-500.0,0.00022995,2]
[311457754,1705147839633,-500.0,0.00022995,2]
[311457755,1705147839641,-500.0,0.00022995,2]
[311457756,1705147839650,-500.0,0.00022995,2]
[311457757,1705147839659,-534.44,0.00022995,2]
[311457758,1705147839669,-500.0,0.00022995,2]
[311457759,1705147839678,-500.0,0.00022995,2]
[311457760,1705147839688,-500.0,0.00022995,2]
[311457761,1705147839698,-500.0,0.00022995,2]
[311457762,1705147839708,-500.0,0.00022995,2]
[311457763,1705147839717,-500.0,0.00022995,2]
[311457764,1705147839727,-500.0,0.00022995,2]
[311457765,1705147839736,-500.0,0.00022995,2]
[311457766,1705147839746,-500.0,0.00022995,2]
[311457767,1705147839755,-500.0,0.00022995,2]
[311457768,1705147839765,-500.0,0.00022995,2]
[311457769,1705147839775,-500.0,0.00022995,2]
[311457770,1705147839784,-500.0,0.00022995,2]
[311457771,1705147839793,-500.0,0.00022995,2]
[311457772,1705147839803,-500.0,0.00022995,2]
[311457773,1705147839814,-500.0,0.00022995,2]
[311457774,1705147839823,-500.0,0.00022995,2]
[311457775,1705147839832,-500.0,0.00022995,2]
[311457776,1705147839842,-235.21167889,0.00022995,2]
[311457777,1705147839851,-500.0,0.00022995,2]
[311457778,1705147839861,-500.0,0.00022995,2]
[311457779,1705147839870,-500.0,0.00022995,2]
[311457780,1705147839879,-500.0,0.00022995,2]
[311457781,1705147839890,-500.0,0.00022995,2]
[311457782,1705147839899,-500.0,0.00022995,2]
[311457783,1705147839909,-500.0,0.00022995,2]
[311457784,1705147839918,-500.0,0.00022995,2]
[311457785,1705147839927,-500.0,0.00022995,2]
[311457786,1705147839937,-503.30796022,0.00022995,2]
[311457787,1705147839945,-500.0,0.00022995,2]
[311457788,1705147839954,-500.0,0.00022995,2]
[311457789,1705147839964,-500.0,0.00022995,2]
[311457790,1705147839975,-500.0,0.00022995,2]
[311457791,1705147839984,-500.0,0.00022995,2]
[311457792,1705147839993,-500.0,0.00022995,2]
[311457793,1705147840002,-500.0,0.00022995,2]
[311457794,1705147840011,-500.0,0.00022995,2]
[311457795,1705147840019,-500.0,0.00022995,2]
[311457796,1705147840028,-500.0,0.00022995,2]
[311457797,1705147840037,-500.0,0.00022995,2]
[311457798,1705147840047,-500.0,0.00022995,2]
[311457799,1705147840056,-500.0,0.00022995,2]
[311457800,1705147840066,-500.0,0.00022995,2]
[311457801,1705147840076,-500.0,0.00022995,2]
[311457802,1705147840085,-500.0,0.00022995,2]
[311457803,1705147840094,-500.0,0.00022995,2]
[311457804,1705147840103,-500.0,0.00022995,2]
[311457805,1705147840112,-644.16649651,0.00022995,2]
[311457806,1705147840122,-500.0,0.00022995,2]
[311457807,1705147840130,-500.0,0.00022995,2]
[311457808,1705147840140,-500.0,0.00022995,2]
[311457809,1705147840149,-500.0,0.00022995,2]
[311457810,1705147840159,-519.20696118,0.00022995,2]
[311457811,1705147840168,-500.0,0.00022995,2]
[311457812,1705147840178,-500.0,0.00022995,2]
[311457813,1705147840187,-500.0,0.00022995,2]
[311457814,1705147840197,-500.0,0.00022995,2]
[311457815,1705147840206,-500.0,0.00022995,2]
[311457816,1705147840216,-500.0,0.00022995,2]
[311457817,1705147840224,-500.0,0.00022995,2]
[311457818,1705147840234,-612.08005625,0.00022995,2]
[311457819,1705147840248,-500.0,0.00022995,2]
[311457820,1705147840259,-500.0,0.00022995,2]
[311457821,1705147840270,-500.0,0.00022995,2]
[311457822,1705147840278,-500.0,0.00022995,2]
[311457823,1705147840288,-500.0,0.00022995,2]
[311457824,1705147840296,-500.0,0.00022995,2]
[311457825,1705147840305,-500.0,0.00022995,2]
[311457826,1705147840314,-500.0,0.00022995,2]
[311457827,1705147840325,-500.0,0.00022995,2]
[311457829,1705147840336,-500.0,0.00022995,2]
[311457830,1705147840347,-500.0,0.00022995,2]
[311457831,1705147840358,-500.0,0.00022995,2]
[311457832,1705147840367,-500.0,0.00022995,2]
[311457833,1705147840378,-580.1,0.00022995,2]
[311457835,1705147840388,-500.0,0.00022995,2]
[311457837,1705147840398,-500.0,0.00022995,2]
[311457838,1705147840407,-500.0,0.00022995,2]
[311457839,1705147840417,-500.0,0.00022995,2]
[311457840,1705147840426,-500.0,0.00022995,2]
[311457841,1705147840435,-500.0,0.00022995,2]
[311457842,1705147840443,-500.0,0.00022995,2]
[311457843,1705147840453,-500.0,0.00022995,2]
[311457844,1705147840463,-500.0,0.00022995,2]
[311457845,1705147840472,-575.11,0.00022995,2]
[311457846,1705147840481,-500.0,0.00022995,2]
[311457847,1705147840490,-500.0,0.00022995,2]
[311457848,1705147840499,-500.0,0.00022995,2]
[311457849,1705147840509,-627.79,0.00022995,2]
[311457850,1705147840518,-500.0,0.00022995,2]
[311457851,1705147840528,-500.0,0.00022995,2]
[311457852,1705147840537,-500.0,0.00022995,2]
[311457853,1705147840547,-500.0,0.00022995,2]
[311457854,1705147840557,-500.0,0.00022995,2]
[311457855,1705147840566,-500.0,0.00022995,2]
[311457856,1705147840575,-503.81897482,0.00022995,2]
[311457857,1705147840584,-500.0,0.00022995,2]
[311457858,1705147840597,-500.0,0.00022995,2]
[311457859,1705147840606,-500.0,0.00022995,2]
[311457860,1705147840615,-543.07,0.00022995,2]
[311457861,1705147840625,-500.0,0.00022995,2]
[311457862,1705147840634,-500.0,0.00022995,2]
[311457863,1705147840643,-500.0,0.00022995,2]
[311457864,1705147840653,-500.0,0.00022995,2]
[311457865,1705147840662,-500.0,0.00022995,2]
[311457866,1705147840671,-500.0,0.00022995,2]
[311457867,1705147840680,-502.01668409,0.00022995,2]
[311457868,1705147840690,-1422.19,0.00022995,2]
[311457869,1705147840699,-500.0,0.00022995,2]
[311457870,1705147840709,-500.0,0.00022995,2]
[311457871,1705147840719,-500.0,0.00022995,2]
[311457872,1705147840728,-500.0,0.00022995,2]
[311457873,1705147840738,-500.0,0.00022995,2]
[311457874,1705147840747,-525.5166078,0.00022995,2]
[311457875,1705147840756,-500.0,0.00022995,2]
[311457876,1705147840766,-562.5,0.00022995,2]
[311457877,1705147840775,-500.0,0.00022995,2]
[311457878,1705147840784,-501.59103561,0.00022995,2]
[311457879,1705147840793,-500.0,0.00022995,2]
[311457880,1705147840802,-545.97555715,0.00022995,2]
[311457881,1705147840811,-500.0,0.00022995,2]
[311457882,1705147840820,-500.0,0.00022995,2]
[311457883,1705147840829,-500.0,0.00022995,2]
[311457884,1705147840838,-544.96,0.00022995,2]
[311457885,1705147840848,-500.0,0.00022995,2]
[311457886,1705147840857,-500.0,0.00022995,2]
[311457887,1705147840866,-530.09,0.00022995,2]
[311457888,1705147840875,-500.0,0.00022995,2]
[311457889,1705147840884,-500.0,0.00022995,2]
[311457890,1705147840893,-500.0,0.00022995,2]
[311457891,1705147840902,-500.0,0.00022995,2]
[311457892,1705147840911,-500.0,0.00022995,2]
[311457893,1705147840920,-500.0,0.00022995,2]
[311457894,1705147840930,-500.0,0.00022995,2]
[311457895,1705147840939,-500.0,0.00022995,2]
[311457896,1705147840949,-500.0,0.00022995,2]
[311457897,1705147840958,-500.0,0.00022995,2]
[311457898,1705147840968,-602.34,0.00022995,2]
[311457899,1705147840978,-500.0,0.00022995,2]
[311457900,1705147840988,-500.0,0.00022995,2]
[311457901,1705147840997,-500.0,0.00022995,2]
[311457902,1705147841007,-167.14459813,0.00022995,2]
[311457903,1705147841310,-500.0,0.00022995,2]
[311457904,1705147841379,-500.0,0.00022995,2]
[311457905,1705147841389,-500.0,0.00022995,2]
[311457906,1705147841398,-500.0,0.00022995,2]
[311457907,1705147841407,-503.55,0.00022995,2]
[311457908,1705147841416,-500.0,0.00022995,2]
[311457909,1705147841426,-500.0,0.00022995,2]
[311457910,1705147841437,-853.11,0.00022995,2]
[311457911,1705147841447,-503.10677959,0.00022995,2]
[311457912,1705147841457,-523.35,0.00022995,2]
[311457913,1705147841467,-500.0,0.00022995,2]
[311457914,1705147841476,-500.0,0.00022995,2]
[311457915,1705147841485,-500.0,0.00022995,2]
[311457916,1705147841495,-500.0,0.00022995,2]
[311457917,1705147841504,-500.0,0.00022995,2]
[311457918,1705147841513,-500.0,0.00022995,2]
[311457919,1705147841522,-511.44,0.00022995,2]
[311457920,1705147841531,-500.0,0.00022995,2]
[311457921,1705147841540,-500.0,0.00022995,2]
[311457922,1705147841549,-500.0,0.00022995,2]
[311457923,1705147841559,-500.0,0.00022995,2]
[311457924,1705147841568,-600.73,0.00022995,2]
[311457925,1705147841577,-500.0,0.00022995,2]
[311457926,1705147841586,-500.0,0.00022995,2]
[311457927,1705147841595,-500.0,0.00022995,2]
[311457928,1705147841604,-500.0,0.00022995,2]
[311457929,1705147841613,-500.0,0.00022995,2]
[311457930,1705147841622,-500.0,0.00022995,2]
[311457931,1705147841631,-467.12374111,0.00022995,2]
[311457933,1705147841641,-500.0,0.00022995,2]
[311457935,1705147841649,-500.0,0.00022995,2]
[311457937,1705147841659,-505.74152653,0.00022995,2]
[311457939,1705147841668,-500.0,0.00022995,2]
[311457941,1705147841677,-500.0,0.00022995,2]
[311457942,1705147841687,-500.0,0.00022995,2]
[311457944,1705147841696,-500.0,0.00022995,2]
[311457946,1705147841705,-500.0,0.00022995,2]
[311457948,1705147841715,-700.88,0.00022995,2]
[311457950,1705147841724,-500.0,0.00022995,2]
[311457951,1705147841733,-500.0,0.00022995,2]
[311457952,1705147841742,-500.0,0.00022995,2]